[Event "Late-Titled-Tuesday-Blitz-March-05-2024"]
[Site "Chess.com"]
[Date "2024.03.05"]
[Round "3"]
[White "VladimirKramnik"]
[Black "Rutricks"]
[Result "1/2-1/2"]
[WhiteElo "2968"]
[BlackElo "2718"]
[TimeControl "180+1"]
[EndTime "14:29:05 PST"]
[Termination "Game drawn - insufficient material"]

1. e4 {[%clk 0:03:00.9]} 1... g6 {[%clk 0:03:00]} 2. d4 {[%clk 0:02:59.8]} 2...
Bg7 {[%clk 0:03:00.7]} 3. Nf3 {[%clk 0:02:59.9]} 3... c6 {[%clk 0:03:00.8]} 4.
c3 {[%clk 0:02:56.1]} 4... d5 {[%clk 0:03:01.7]} 5. Nbd2 {[%clk 0:02:54.9]} 5...
dxe4 {[%clk 0:03:02.6]} 6. Nxe4 {[%clk 0:02:53.5]} 6... Nf6 {[%clk 0:03:03.5]}
7. Nxf6+ {[%clk 0:02:50]} 7... exf6 {[%clk 0:03:04.4]} 8. Bc4 {[%clk 0:02:45.5]}
8... O-O {[%clk 0:03:05.3]} 9. O-O {[%clk 0:02:45.3]} 9... a5 {[%clk 0:03:06.2]}
10. a4 {[%clk 0:02:42.8]} 10... Na6 {[%clk 0:03:06.7]} 11. Re1 {[%clk
0:02:41.8]} 11... Nc7 {[%clk 0:03:07.4]} 12. h3 {[%clk 0:02:40.7]} 12... Nd5
{[%clk 0:03:08.1]} 13. Bd2 {[%clk 0:02:38]} 13... Be6 {[%clk 0:03:08.4]} 14. Bf1
{[%clk 0:02:32.1]} 14... Re8 {[%clk 0:03:08.6]} 15. Qc2 {[%clk 0:02:27.2]} 15...
Qd6 {[%clk 0:03:08.5]} 16. Bd3 {[%clk 0:02:21.3]} 16... Bf8 {[%clk 0:02:52.3]}
17. Re2 {[%clk 0:02:19]} 17... Nf4 {[%clk 0:02:51.2]} 18. Bxf4 {[%clk
0:02:17.8]} 18... Qxf4 {[%clk 0:02:52.1]} 19. Rae1 {[%clk 0:02:16.9]} 19... Bd7
{[%clk 0:02:41.3]} 20. Bc4 {[%clk 0:02:09.7]} 20... Rxe2 {[%clk 0:02:33.9]} 21.
Rxe2 {[%clk 0:01:56.2]} 21... Re8 {[%clk 0:02:16.3]} 22. Rxe8 {[%clk 0:01:48.5]}
22... Bxe8 {[%clk 0:02:17.2]} 23. Qe2 {[%clk 0:01:37.5]} 23... Bd7 {[%clk
0:02:15.5]} 24. Qe3 {[%clk 0:01:31]} 24... Bd6 {[%clk 0:01:38.6]} 25. Kf1 {[%clk
0:01:16]} 25... Kf8 {[%clk 0:01:20.9]} 26. Qxf4 {[%clk 0:01:14.8]} 26... Bxf4
{[%clk 0:01:20.9]} 27. Ke2 {[%clk 0:01:15.3]} 27... Bc1 {[%clk 0:01:16.7]} 28.
b3 {[%clk 0:01:14.2]} 28... b5 {[%clk 0:01:16]} 29. axb5 {[%clk 0:01:02.6]}
29... cxb5 {[%clk 0:01:16.9]} 30. Bd5 {[%clk 0:01:02.8]} 30... a4 {[%clk
0:00:35.6]} 31. Kd1 {[%clk 0:01:00.3]} 31... Bf4 {[%clk 0:00:18.6]} 32. Kc2
{[%clk 0:00:54.7]} 32... Ke7 {[%clk 0:00:18.3]} 33. Kb2 {[%clk 0:00:47.8]} 33...
axb3 {[%clk 0:00:08.7]} 34. Kxb3 {[%clk 0:00:47.1]} 34... h5 {[%clk 0:00:09.5]}
35. g3 {[%clk 0:00:37.2]} 35... Bd6 {[%clk 0:00:09.2]} 36. h4 {[%clk 0:00:36.8]}
36... Be6 {[%clk 0:00:07]} 37. Bxe6 {[%clk 0:00:32.6]} 37... Kxe6 {[%clk
0:00:07.9]} 38. c4 {[%clk 0:00:32.7]} 38... bxc4+ {[%clk 0:00:08.1]} 39. Kxc4
{[%clk 0:00:33.4]} 39... Kf5 {[%clk 0:00:08.9]} 40. Nd2 {[%clk 0:00:26]} 40...
g5 {[%clk 0:00:06.1]} 41. Kd5 {[%clk 0:00:23]} 41... Bb8 {[%clk 0:00:02.3]} 42.
Ne4 {[%clk 0:00:23.5]} 42... gxh4 {[%clk 0:00:02.2]} 43. gxh4 {[%clk 0:00:24.1]}
43... Kg4 {[%clk 0:00:02.9]} 44. Nxf6+ {[%clk 0:00:20.4]} 44... Kxh4 {[%clk
0:00:03.6]} 45. Ke4 {[%clk 0:00:19.7]} 45... Kg5 {[%clk 0:00:04]} 46. Nd7 {[%clk
0:00:19.3]} 46... f5+ {[%clk 0:00:04.8]} 47. Kf3 {[%clk 0:00:18.4]} 47... Bd6
{[%clk 0:00:05.5]} 48. Kg2 {[%clk 0:00:14.7]} 48... Kf4 {[%clk 0:00:05.3]} 49.
Nf6 {[%clk 0:00:13.5]} 49... h4 {[%clk 0:00:05.9]} 50. Kh3 {[%clk 0:00:09.7]}
50... Kf3 {[%clk 0:00:02.9]} 51. Kxh4 {[%clk 0:00:07.5]} 51... Kxf2 {[%clk
0:00:03.6]} 52. Kg5 {[%clk 0:00:07.4]} 52... Ke3 {[%clk 0:00:04]} 53. d5 {[%clk
0:00:07.5]} 53... f4 {[%clk 0:00:03.8]} 54. Kf5 {[%clk 0:00:05.3]} 54... f3
{[%clk 0:00:03.7]} 55. Ng4+ {[%clk 0:00:06]} 55... Ke2 {[%clk 0:00:04.2]} 56.
Ke6 {[%clk 0:00:06.5]} 56... Bg3 {[%clk 0:00:04.5]} 57. d6 {[%clk 0:00:06.7]}
57... Bxd6 {[%clk 0:00:04.9]} 58. Kxd6 {[%clk 0:00:06.4]} 58... f2 {[%clk
0:00:05.8]} 59. Nxf2 {[%clk 0:00:05.9]} 1/2-1/2

[Event "Late-Titled-Tuesday-Blitz-March-05-2024"]
[Site "Chess.com"]
[Date "2024.03.05"]
[Round "3"]
[White "Abduzhaparov"]
[Black "Ajedrez_con_German"]
[Result "0-1"]
[WhiteElo "2434"]
[BlackElo "2589"]
[TimeControl "180+1"]
[EndTime "14:29:05 PST"]
[Termination "Ajedrez_con_German won by resignation"]

1. Nf3 {[%clk 0:02:58.7]} 1... g6 {[%clk 0:02:52.8]} 2. c4 {[%clk 0:02:59.6]}
2... Bg7 {[%clk 0:02:52.6]} 3. Nc3 {[%clk 0:02:59.8]} 3... d6 {[%clk 0:02:53]}
4. e4 {[%clk 0:03:00]} 4... c5 {[%clk 0:02:51.8]} 5. d4 {[%clk 0:03:00.1]} 5...
cxd4 {[%clk 0:02:52.4]} 6. Nxd4 {[%clk 0:03:00.9]} 6... Nc6 {[%clk 0:02:52.9]}
7. Be3 {[%clk 0:03:00.2]} 7... Nf6 {[%clk 0:02:53.5]} 8. Be2 {[%clk 0:02:59.1]}
8... O-O {[%clk 0:02:52.8]} 9. O-O {[%clk 0:02:58.7]} 9... Bd7 {[%clk
0:02:53.4]} 10. h3 {[%clk 0:02:58.8]} 10... Nxd4 {[%clk 0:02:50.8]} 11. Bxd4
{[%clk 0:02:59.7]} 11... Bc6 {[%clk 0:02:51.5]} 12. Qc2 {[%clk 0:02:59.5]} 12...
a5 {[%clk 0:02:51.9]} 13. Rad1 {[%clk 0:02:59.1]} 13... a4 {[%clk 0:02:52]} 14.
c5 {[%clk 0:02:52.2]} 14... Qa5 {[%clk 0:02:52.1]} 15. cxd6 {[%clk 0:02:51.5]}
15... exd6 {[%clk 0:02:53]} 16. a3 {[%clk 0:02:43.2]} 16... Rfe8 {[%clk
0:02:52.9]} 17. Bd3 {[%clk 0:02:41.4]} 17... Rac8 {[%clk 0:02:48.9]} 18. Qd2
{[%clk 0:02:41.2]} 18... Qh5 {[%clk 0:02:32.1]} 19. Rfe1 {[%clk 0:02:35.9]}
19... Qa5 {[%clk 0:02:25.4]} 20. f4 {[%clk 0:02:21.7]} 20... Qc7 {[%clk
0:01:57.4]} 21. Rc1 {[%clk 0:02:12.1]} 21... Qd7 {[%clk 0:01:47.5]} 22. Kh2
{[%clk 0:02:03.8]} 22... Ng4+ {[%clk 0:01:37.9]} 23. hxg4 {[%clk 0:01:59.5]}
23... Bxd4 {[%clk 0:01:38.1]} 24. Bc4 {[%clk 0:01:46.5]} 24... Bxc3 {[%clk
0:01:24]} 25. Rxc3 {[%clk 0:01:42]} 25... Rxe4 {[%clk 0:01:08.5]} 26. Rxe4
{[%clk 0:01:20.6]} 26... Bxe4 {[%clk 0:01:09.4]} 27. Qd4 {[%clk 0:00:59.9]}
27... d5 {[%clk 0:00:51.8]} 28. Bb5 {[%clk 0:00:47.8]} 28... Qxg4 {[%clk
0:00:44.4]} 29. Rxc8+ {[%clk 0:00:47.1]} 29... Qxc8 {[%clk 0:00:44.5]} 30. Bxa4
{[%clk 0:00:45.6]} 30... Qg4 {[%clk 0:00:31.2]} 31. Qf2 {[%clk 0:00:45.5]} 31...
d4 {[%clk 0:00:22.3]} 32. Bb5 {[%clk 0:00:38.6]} 32... d3 {[%clk 0:00:22.1]} 33.
a4 {[%clk 0:00:22.1]} 33... Qh5+ {[%clk 0:00:16.3]} 34. Kg1 {[%clk 0:00:20.4]}
34... Qd1+ {[%clk 0:00:15.8]} 35. Kh2 {[%clk 0:00:19.7]} 35... d2 {[%clk
0:00:14.4]} 36. Be2 {[%clk 0:00:18.2]} 36... Qe1 {[%clk 0:00:14.3]} 37. Kg3
{[%clk 0:00:13.1]} 37... d1=Q {[%clk 0:00:08.6]} 38. Bxd1 {[%clk 0:00:12.9]}
38... Qxd1 {[%clk 0:00:08.8]} 39. Qa7 {[%clk 0:00:11.9]} 39... Qd3+ {[%clk
0:00:07.9]} 40. Kh2 {[%clk 0:00:11.6]} 40... Qd6 {[%clk 0:00:03.5]} 41. Qa8+
{[%clk 0:00:10.4]} 41... Kg7 {[%clk 0:00:02.9]} 42. Kg3 {[%clk 0:00:08.1]} 42...
Bc6 {[%clk 0:00:03]} 43. Qa5 {[%clk 0:00:05.8]} 43... Qd5 {[%clk 0:00:03.3]} 44.
Qxd5 {[%clk 0:00:05.2]} 44... Bxd5 {[%clk 0:00:03.4]} 45. b4 {[%clk 0:00:06.1]}
45... Bb3 {[%clk 0:00:03.3]} 46. a5 {[%clk 0:00:05.4]} 46... Bc4 {[%clk
0:00:03.8]} 47. Kf2 {[%clk 0:00:06]} 47... Kf6 {[%clk 0:00:04.4]} 48. Ke3 {[%clk
0:00:06.9]} 48... Kf5 {[%clk 0:00:04.7]} 49. Kd4 {[%clk 0:00:07.2]} 49... Bb5
{[%clk 0:00:04.7]} 50. Kc5 {[%clk 0:00:07.2]} 50... Bf1 {[%clk 0:00:04]} 51. Kb6
{[%clk 0:00:06.6]} 51... Bxg2 {[%clk 0:00:04.3]} 52. b5 {[%clk 0:00:07.1]} 52...
Kxf4 {[%clk 0:00:04.6]} 53. a6 {[%clk 0:00:05.8]} 53... bxa6 {[%clk 0:00:05.2]}
54. bxa6 {[%clk 0:00:06.7]} 54... h5 {[%clk 0:00:05.6]} 55. a7 {[%clk
0:00:07.2]} 55... h4 {[%clk 0:00:06]} 56. Kc5 {[%clk 0:00:08.1]} 56... h3 {[%clk
0:00:05.9]} 57. Kd4 {[%clk 0:00:09]} 57... h2 {[%clk 0:00:06.2]} 58. a8=Q {[%clk
0:00:09.6]} 58... Bxa8 {[%clk 0:00:06.2]} 0-1

[Event "Late-Titled-Tuesday-Blitz-March-05-2024"]
[Site "Chess.com"]
[Date "2024.03.05"]
[Round "3"]
[White "TheBigBoss04"]
[Black "Jesseinkman"]
[Result "1-0"]
[WhiteElo "2687"]
[BlackElo "2483"]
[TimeControl "180+1"]
[EndTime "14:29:06 PST"]
[Termination "TheBigBoss04 won by resignation"]

1. e4 {[%clk 0:03:00.9]} 1... e5 {[%clk 0:02:59.9]} 2. Nf3 {[%clk 0:02:56.8]}
2... Nc6 {[%clk 0:02:59.7]} 3. c3 {[%clk 0:02:57.2]} 3... Nf6 {[%clk 0:02:56]}
4. d3 {[%clk 0:02:55]} 4... d5 {[%clk 0:02:54.5]} 5. Nbd2 {[%clk 0:02:55.3]}
5... Be7 {[%clk 0:02:51.6]} 6. Be2 {[%clk 0:02:55]} 6... O-O {[%clk 0:02:51.7]}
7. O-O {[%clk 0:02:55.8]} 7... h6 {[%clk 0:02:52.2]} 8. Re1 {[%clk 0:02:53.4]}
8... Re8 {[%clk 0:02:52.4]} 9. Qc2 {[%clk 0:02:50]} 9... a5 {[%clk 0:02:51.9]}
10. a4 {[%clk 0:02:49.7]} 10... Bf8 {[%clk 0:02:51.2]} 11. Bf1 {[%clk
0:02:45.5]} 11... b6 {[%clk 0:02:42.3]} 12. exd5 {[%clk 0:02:43.4]} 12... Nxd5
{[%clk 0:02:42.4]} 13. Nc4 {[%clk 0:02:42.6]} 13... f6 {[%clk 0:02:39]} 14. g3
{[%clk 0:02:22.6]} 14... Ba6 {[%clk 0:02:36.2]} 15. Bg2 {[%clk 0:02:19.8]} 15...
Qd7 {[%clk 0:02:32.1]} 16. Bd2 {[%clk 0:02:07.1]} 16... Rad8 {[%clk 0:02:29.3]}
17. Rad1 {[%clk 0:02:07.6]} 17... Bc5 {[%clk 0:02:22.2]} 18. Bc1 {[%clk
0:02:05.6]} 18... Nde7 {[%clk 0:02:14.2]} 19. Qe2 {[%clk 0:01:44.4]} 19... Qe6
{[%clk 0:02:02.5]} 20. Nfd2 {[%clk 0:01:30.6]} 20... Qf7 {[%clk 0:01:32.4]} 21.
Ne4 {[%clk 0:01:26]} 21... Bxc4 {[%clk 0:01:30.1]} 22. dxc4 {[%clk 0:01:24.4]}
22... Qe6 {[%clk 0:01:02.7]} 23. Nxc5 {[%clk 0:01:12.5]} 23... bxc5 {[%clk
0:01:03.6]} 24. Be3 {[%clk 0:01:13]} 24... Kh8 {[%clk 0:00:55.2]} 25. Bxc5
{[%clk 0:01:11.4]} 25... Rb8 {[%clk 0:00:55.6]} 26. Bd5 {[%clk 0:00:57.8]} 26...
Qf5 {[%clk 0:00:48.1]} 27. Be4 {[%clk 0:00:55.1]} 27... Qe6 {[%clk 0:00:47.6]}
28. Rd2 {[%clk 0:00:43.8]} 28... Red8 {[%clk 0:00:39.9]} 29. Red1 {[%clk
0:00:42.5]} 29... Rxd2 {[%clk 0:00:40.1]} 30. Rxd2 {[%clk 0:00:43.4]} 30... f5
{[%clk 0:00:38.3]} 31. Bd5 {[%clk 0:00:40.7]} 31... Qf6 {[%clk 0:00:37.1]} 32.
f3 {[%clk 0:00:33.1]} 32... Rd8 {[%clk 0:00:28]} 33. Bf2 {[%clk 0:00:23.2]}
33... Qg5 {[%clk 0:00:26]} 34. Kf1 {[%clk 0:00:15]} 34... Qh5 {[%clk 0:00:24.4]}
35. Kg2 {[%clk 0:00:14.8]} 35... Qg5 {[%clk 0:00:24]} 36. h4 {[%clk 0:00:13.2]}
36... Qg6 {[%clk 0:00:20.7]} 37. Bxc6 {[%clk 0:00:10.1]} 37... Rxd2 {[%clk
0:00:19.1]} 38. Qxd2 {[%clk 0:00:11]} 38... Nxc6 {[%clk 0:00:17.8]} 39. Qd5
{[%clk 0:00:09.4]} 39... e4 {[%clk 0:00:16.6]} 40. Be3 {[%clk 0:00:04.8]} 40...
exf3+ {[%clk 0:00:16.3]} 41. Qxf3 {[%clk 0:00:05.6]} 41... Ne5 {[%clk
0:00:14.2]} 42. Qd5 {[%clk 0:00:04.3]} 42... Ng4 {[%clk 0:00:11.9]} 43. Bd4
{[%clk 0:00:03]} 43... Qe8 {[%clk 0:00:10.5]} 44. Qf3 {[%clk 0:00:01.9]} 44...
Qe6 {[%clk 0:00:10.5]} 45. Qa8+ {[%clk 0:00:01.7]} 45... Kh7 {[%clk 0:00:10.6]}
46. Qf3 {[%clk 0:00:01.9]} 46... Qe1 {[%clk 0:00:10.7]} 47. Qxf5+ {[%clk
0:00:02.1]} 47... Kh8 {[%clk 0:00:06.5]} 48. Qxg4 {[%clk 0:00:02.3]} 48... Qd2+
{[%clk 0:00:06.6]} 49. Bf2 {[%clk 0:00:02.7]} 49... Qd3 {[%clk 0:00:06.2]} 50.
Qc8+ {[%clk 0:00:02.2]} 50... Kh7 {[%clk 0:00:06.4]} 51. Qe6 {[%clk 0:00:02.5]}
51... Kh8 {[%clk 0:00:06]} 52. Qd5 {[%clk 0:00:02.4]} 52... Qg6 {[%clk
0:00:05.7]} 53. Qa8+ {[%clk 0:00:01.6]} 53... Kh7 {[%clk 0:00:05.7]} 54. Qf3
{[%clk 0:00:02.5]} 54... c6 {[%clk 0:00:06.2]} 55. h5 {[%clk 0:00:02.9]} 55...
Qb1 {[%clk 0:00:06.9]} 56. g4 {[%clk 0:00:03.1]} 56... Kh8 {[%clk 0:00:07.4]}
57. Qf8+ {[%clk 0:00:03.1]} 57... Kh7 {[%clk 0:00:07.3]} 58. Qf5+ {[%clk
0:00:04]} 58... Qxf5 {[%clk 0:00:07.9]} 59. gxf5 {[%clk 0:00:04.8]} 1-0

[Event "Late-Titled-Tuesday-Blitz-March-05-2024"]
[Site "Chess.com"]
[Date "2024.03.05"]
[Round "3"]
[White "igorknyazev"]
[Black "Bkmzzzzz"]
[Result "0-1"]
[WhiteElo "2205"]
[BlackElo "2415"]
[TimeControl "180+1"]
[EndTime "14:29:06 PST"]
[Termination "Bkmzzzzz won on time"]

1. e4 {[%clk 0:02:57.5]} 1... d6 {[%clk 0:03:00]} 2. d4 {[%clk 0:02:56.9]} 2...
Nf6 {[%clk 0:03:00.3]} 3. Nc3 {[%clk 0:02:55.5]} 3... e5 {[%clk 0:03:00.5]} 4.
dxe5 {[%clk 0:02:54.8]} 4... dxe5 {[%clk 0:03:01.4]} 5. Bg5 {[%clk 0:02:54.2]}
5... Be6 {[%clk 0:02:57.9]} 6. Qxd8+ {[%clk 0:02:53]} 6... Kxd8 {[%clk
0:02:58.8]} 7. Nf3 {[%clk 0:02:50]} 7... Bd6 {[%clk 0:02:57.6]} 8. Nd5 {[%clk
0:02:46.8]} 8... Nd7 {[%clk 0:02:38.7]} 9. O-O-O {[%clk 0:02:40.6]} 9... h6
{[%clk 0:02:06.2]} 10. Nxf6 {[%clk 0:02:21.7]} 10... Nxf6 {[%clk 0:01:44.1]} 11.
Bxf6+ {[%clk 0:02:18.8]} 11... gxf6 {[%clk 0:01:45]} 12. Kb1 {[%clk 0:02:18.2]}
12... Ke7 {[%clk 0:01:44.7]} 13. Nh4 {[%clk 0:02:15.3]} 13... Bc5 {[%clk
0:01:38.6]} 14. f3 {[%clk 0:02:11.1]} 14... Rad8 {[%clk 0:01:28.5]} 15. Bb5
{[%clk 0:02:07.5]} 15... c6 {[%clk 0:01:26.6]} 16. Ba4 {[%clk 0:02:07.2]} 16...
Rhg8 {[%clk 0:01:23]} 17. g4 {[%clk 0:02:02.7]} 17... Bf2 {[%clk 0:01:15.9]} 18.
Nf5+ {[%clk 0:01:50.5]} 18... Bxf5 {[%clk 0:01:16.1]} 19. exf5 {[%clk
0:01:43.7]} 19... h5 {[%clk 0:01:01.4]} 20. h3 {[%clk 0:01:40.2]} 20... Be3
{[%clk 0:00:49]} 21. Rd3 {[%clk 0:01:33.1]} 21... Rxd3 {[%clk 0:00:47.4]} 22.
cxd3 {[%clk 0:01:32.7]} 22... Rd8 {[%clk 0:00:47.5]} 23. Kc2 {[%clk 0:01:23.1]}
23... Rd4 {[%clk 0:00:47.3]} 24. Bb3 {[%clk 0:01:19.4]} 24... Rf4 {[%clk
0:00:46.9]} 25. Rf1 {[%clk 0:01:15.5]} 25... a5 {[%clk 0:00:35.5]} 26. a3 {[%clk
0:01:09.5]} 26... Bd4 {[%clk 0:00:30.4]} 27. Ba2 {[%clk 0:00:59.4]} 27... b5
{[%clk 0:00:27.7]} 28. b3 {[%clk 0:00:58.5]} 28... Bc5 {[%clk 0:00:26.9]} 29.
Kb2 {[%clk 0:00:46.1]} 29... hxg4 {[%clk 0:00:19.9]} 30. hxg4 {[%clk 0:00:45]}
30... Rd4 {[%clk 0:00:20.6]} 31. Rd1 {[%clk 0:00:43.3]} 31... Rd8 {[%clk
0:00:21]} 32. Bb1 {[%clk 0:00:42.2]} 32... Rh8 {[%clk 0:00:21.1]} 33. a4 {[%clk
0:00:33.4]} 33... b4 {[%clk 0:00:18.8]} 34. Bc2 {[%clk 0:00:27.5]} 34... Rh2
{[%clk 0:00:17.8]} 35. Rf1 {[%clk 0:00:27.2]} 35... Bd4+ {[%clk 0:00:18]} 36.
Kc1 {[%clk 0:00:26.1]} 36... Bc3 {[%clk 0:00:14.7]} 37. f4 {[%clk 0:00:23.8]}
37... exf4 {[%clk 0:00:14.9]} 38. Kd1 {[%clk 0:00:16.3]} 38... Be5 {[%clk
0:00:14.4]} 39. d4 {[%clk 0:00:15.1]} 39... Bxd4 {[%clk 0:00:13.6]} 40. Rxf4
{[%clk 0:00:14.5]} 40... Be5 {[%clk 0:00:14.4]} 41. Rc4 {[%clk 0:00:13.5]} 41...
Kd6 {[%clk 0:00:15]} 42. Be4 {[%clk 0:00:12.8]} 42... c5 {[%clk 0:00:15]} 43.
Rc2 {[%clk 0:00:11.3]} 43... Rh4 {[%clk 0:00:14.5]} 44. Rd2+ {[%clk 0:00:11]}
44... Bd4 {[%clk 0:00:14.7]} 45. Bf3 {[%clk 0:00:10.5]} 45... Ke5 {[%clk
0:00:14.8]} 46. Kc2 {[%clk 0:00:08.4]} 46... Kf4 {[%clk 0:00:15]} 47. Bd1 {[%clk
0:00:08.6]} 47... Rh3 {[%clk 0:00:14.8]} 48. Re2 {[%clk 0:00:07.9]} 48... Rc3+
{[%clk 0:00:13.8]} 49. Kd2 {[%clk 0:00:06.9]} 49... Be3+ {[%clk 0:00:14.1]} 50.
Ke1 {[%clk 0:00:06.9]} 50... Rc1 {[%clk 0:00:14.3]} 51. Rg2 {[%clk 0:00:05.8]}
51... Ke4 {[%clk 0:00:13.5]} 52. Ke2 {[%clk 0:00:04.1]} 52... Ra1 {[%clk
0:00:12.6]} 53. Bc2+ {[%clk 0:00:03.9]} 53... Kd4 {[%clk 0:00:13.2]} 54. g5
{[%clk 0:00:03]} 54... Bxg5 {[%clk 0:00:12.2]} 55. Rg4+ {[%clk 0:00:02.7]} 55...
Kc3 {[%clk 0:00:11.8]} 56. Rc4+ {[%clk 0:00:03.4]} 56... Kb2 {[%clk 0:00:12.5]}
57. Rxc5 {[%clk 0:00:03.4]} 57... Rc1 {[%clk 0:00:12.1]} 0-1

[Event "Late-Titled-Tuesday-Blitz-March-05-2024"]
[Site "Chess.com"]
[Date "2024.03.05"]
[Round "3"]
[White "HamedWafa4"]
[Black "Jospem"]
[Result "0-1"]
[WhiteElo "2745"]
[BlackElo "3100"]
[TimeControl "180+1"]
[EndTime "14:29:07 PST"]
[Termination "Jospem won by resignation"]

1. e4 {[%clk 0:03:00.9]} 1... c5 {[%clk 0:02:59.3]} 2. Nc3 {[%clk 0:02:57.2]}
2... d6 {[%clk 0:02:59.6]} 3. Nf3 {[%clk 0:02:57.1]} 3... a6 {[%clk 0:02:58.9]}
4. g3 {[%clk 0:02:56.3]} 4... Nc6 {[%clk 0:02:57.7]} 5. Bg2 {[%clk 0:02:56]}
5... g6 {[%clk 0:02:58.2]} 6. d4 {[%clk 0:02:55.4]} 6... cxd4 {[%clk 0:02:58.3]}
7. Nxd4 {[%clk 0:02:56.3]} 7... Bd7 {[%clk 0:02:58.9]} 8. O-O {[%clk 0:02:56.1]}
8... Bg7 {[%clk 0:02:59.1]} 9. Nxc6 {[%clk 0:02:55.9]} 9... Bxc6 {[%clk
0:02:50.8]} 10. Qd3 {[%clk 0:02:55.7]} 10... Nf6 {[%clk 0:02:50.6]} 11. b3
{[%clk 0:02:55.1]} 11... O-O {[%clk 0:02:31.7]} 12. Bb2 {[%clk 0:02:53.1]} 12...
Nd7 {[%clk 0:02:29.9]} 13. Rab1 {[%clk 0:02:50.5]} 13... Rc8 {[%clk 0:02:29.2]}
14. Rfe1 {[%clk 0:02:45.8]} 14... Qa5 {[%clk 0:02:27.1]} 15. a4 {[%clk
0:02:31.5]} 15... Rfe8 {[%clk 0:02:16.7]} 16. h3 {[%clk 0:02:27.9]} 16... b5
{[%clk 0:02:09.1]} 17. axb5 {[%clk 0:02:20.1]} 17... axb5 {[%clk 0:02:10]} 18.
Ra1 {[%clk 0:02:14.3]} 18... Qb6 {[%clk 0:02:06.2]} 19. Qd2 {[%clk 0:01:45.7]}
19... Qc5 {[%clk 0:01:54.8]} 20. Nd1 {[%clk 0:01:38.8]} 20... Bxb2 {[%clk
0:01:48.7]} 21. Nxb2 {[%clk 0:01:39.7]} 21... Nf6 {[%clk 0:01:40.6]} 22. Nd3
{[%clk 0:01:31]} 22... Qd4 {[%clk 0:01:39.1]} 23. Qb4 {[%clk 0:01:31.3]} 23...
Qb6 {[%clk 0:01:34.6]} 24. Ra5 {[%clk 0:01:25.7]} 24... Qb8 {[%clk 0:01:22.1]}
25. Rea1 {[%clk 0:01:24.8]} 25... Bd7 {[%clk 0:01:19.8]} 26. Qd2 {[%clk
0:01:03.6]} 26... Qc7 {[%clk 0:01:19.4]} 27. R1a2 {[%clk 0:00:52]} 27... Bc6
{[%clk 0:01:19.3]} 28. Qe3 {[%clk 0:00:48.4]} 28... Qb8 {[%clk 0:01:18]} 29. Ra7
{[%clk 0:00:45]} 29... Rc7 {[%clk 0:01:04.6]} 30. Rxc7 {[%clk 0:00:42.6]} 30...
Qxc7 {[%clk 0:01:05.5]} 31. Ra7 {[%clk 0:00:42.8]} 31... Qc8 {[%clk 0:00:54.4]}
32. Nb4 {[%clk 0:00:39.6]} 32... Bd7 {[%clk 0:00:54.7]} 33. Qd4 {[%clk
0:00:29.9]} 33... Bxh3 {[%clk 0:00:50.6]} 34. Nd5 {[%clk 0:00:14.3]} 34... Nxd5
{[%clk 0:00:48.2]} 35. Qxd5 {[%clk 0:00:14.8]} 35... Bxg2 {[%clk 0:00:44.2]} 36.
Kxg2 {[%clk 0:00:15.7]} 36... Qxc2 {[%clk 0:00:43]} 37. Qxb5 {[%clk 0:00:16]}
37... Qxe4+ {[%clk 0:00:42]} 38. Kh2 {[%clk 0:00:16.2]} 38... Kf8 {[%clk
0:00:36.6]} 39. Rb7 {[%clk 0:00:16]} 39... Qf5 {[%clk 0:00:23.8]} 40. Kg2 {[%clk
0:00:15.8]} 40... Qxb5 {[%clk 0:00:22.4]} 41. Rxb5 {[%clk 0:00:16.7]} 41... Rc8
{[%clk 0:00:20.8]} 42. Kf3 {[%clk 0:00:16.6]} 42... f5 {[%clk 0:00:21]} 43. Rb7
{[%clk 0:00:15.5]} 43... Kf7 {[%clk 0:00:21.2]} 44. b4 {[%clk 0:00:16.1]} 44...
Rc3+ {[%clk 0:00:21.5]} 45. Ke2 {[%clk 0:00:16.3]} 45... Rb3 {[%clk 0:00:21.6]}
46. b5 {[%clk 0:00:16.8]} 46... h5 {[%clk 0:00:19.5]} 47. Rb8 {[%clk 0:00:17.2]}
47... g5 {[%clk 0:00:17.5]} 48. b6 {[%clk 0:00:16.1]} 48... h4 {[%clk
0:00:17.7]} 49. gxh4 {[%clk 0:00:16.2]} 49... gxh4 {[%clk 0:00:18.6]} 50. b7
{[%clk 0:00:16.1]} 50... h3 {[%clk 0:00:19]} 51. Kf1 {[%clk 0:00:11]} 51... Rb1+
{[%clk 0:00:19.2]} 52. Ke2 {[%clk 0:00:11.5]} 52... h2 {[%clk 0:00:20.1]} 53.
Rh8 {[%clk 0:00:12]} 53... Rxb7 {[%clk 0:00:20.7]} 54. Rh7+ {[%clk 0:00:12.4]}
54... Ke6 {[%clk 0:00:21]} 55. Rxh2 {[%clk 0:00:13.3]} 55... Rb3 {[%clk
0:00:20.9]} 56. Rh7 {[%clk 0:00:13]} 56... Kf6 {[%clk 0:00:20.8]} 57. Rh6+
{[%clk 0:00:13.5]} 57... Ke5 {[%clk 0:00:20.5]} 58. Rh8 {[%clk 0:00:14]} 58...
e6 {[%clk 0:00:17.8]} 59. Rc8 {[%clk 0:00:14.7]} 59... Rb2+ {[%clk 0:00:17.9]}
60. Kf3 {[%clk 0:00:15]} 60... Rb3+ {[%clk 0:00:18.5]} 61. Ke2 {[%clk
0:00:15.5]} 61... d5 {[%clk 0:00:19]} 62. Rc5 {[%clk 0:00:15.5]} 62... f4 {[%clk
0:00:18.9]} 63. Ra5 {[%clk 0:00:15.9]} 63... Ke4 {[%clk 0:00:17.7]} 64. f3+
{[%clk 0:00:13.5]} 64... Rxf3 {[%clk 0:00:15.6]} 0-1